bitfinex-derivatives/quotes_BNBF0:USTF0_20250220
["timestamp","ask_amount","ask_price","bid_price","bid_amount"]
[1740088249435,2.96934823,654.46,653.89,0.30586184]
[1740088249732,2.96934823,654.45,653.89,0.30586184]
[1740088249938,2.20808485,654.47,653.89,0.30586184]
[1740088249939,2.96934823,654.44,653.89,0.30586184]
[1740088250134,2.96934823,654.43,653.89,0.30586184]
[1740088250332,2.96934823,654.42,653.89,0.30586184]
[1740088250537,2.96934823,654.41,653.89,0.30586184]
[1740088250737,2.96934823,654.4,653.89,0.30586184]
[1740088250939,2.20808485,654.47,653.89,0.30586184]
[1740088251138,2.96787008,654.46,653.89,0.30586184]
[1740088251338,2.96787008,654.45,653.89,0.30586184]
[1740088251537,2.96787008,654.44,653.89,0.30586184]
[1740088251734,2.96787008,654.43,653.89,0.30586184]
[1740088252038,2.96787008,654.42,653.89,0.30586184]
[1740088252238,2.96787008,654.41,653.89,0.30586184]
[1740088252439,2.96787008,654.4,653.89,0.30586184]
[1740088252638,2.20707489,654.45,653.89,0.30586184]
[1740088252839,2.96772709,654.44,653.89,0.30586184]
[1740088253034,2.96772709,654.43,653.89,0.30586184]
[1740088253238,5.17460014,654.42,653.89,0.30586184]
[1740088253435,2.96772709,654.41,653.89,0.30586184]
[1740088253635,2.20687305,654.42,653.89,0.30586184]
[1740088253837,2.96751905,654.41,653.89,0.30586184]
[1740088254038,2.20687305,654.42,653.89,0.30586184]
[1740088254239,2.96739952,654.41,653.89,0.30586184]
[1740088254435,2.20687305,654.42,653.89,0.30586184]
[1740088254634,2.9673306,654.41,653.89,0.30586184]
[1740088254839,2.571,654.66,653.89,0.30586184]
[1740088255040,2.9673135,654.65,653.89,0.30586184]
[1740088255240,2.9673135,654.64,653.89,0.30586184]
[1740088255541,2.9673135,654.63,653.89,0.30586184]
[1740088255740,2.9673135,654.62,653.89,0.30586184]
[1740088255942,2.9673135,654.61,653.89,0.30586184]
[1740088256136,2.20655847,654.63,653.89,0.30586184]
[1740088256137,2.9673135,654.6,653.89,0.30586184]
[1740088256341,2.9673135,654.59,653.89,0.30586184]
[1740088256541,2.9673135,654.58,653.89,0.30586184]
[1740088256740,2.9673135,654.57,653.89,0.30586184]
[1740088257042,2.9673135,654.56,653.89,0.30586184]
[1740088257242,2.9673135,654.55,653.89,0.30586184]
[1740088257439,2.9673135,654.54,653.89,0.30586184]
[1740088257642,2.9673135,654.53,653.89,0.30586184]
[1740088257943,2.9673135,654.52,653.89,0.30586184]
[1740088258144,2.9673135,654.51,653.89,0.30586184]
[1740088258346,2.9673135,654.5,653.89,0.30586184]
[1740088258644,2.9673135,654.49,653.89,0.30586184]
[1740088258844,2.9673135,654.48,653.89,0.30586184]
[1740088259045,2.9673135,654.47,653.89,0.30586184]
[1740088259238,2.9673135,654.46,653.89,0.30586184]
[1740088259444,2.9673135,654.45,653.89,0.30586184]
[1740088259640,2.9673135,654.44,653.89,0.30586184]
[1740088259843,2.9673135,654.43,653.89,0.30586184]
[1740088260040,2.9673135,654.42,653.89,0.30586184]
[1740088260242,2.9673135,654.41,653.89,0.30586184]
[1740088260548,2.9673135,654.4,653.89,0.30586184]
[1740088260740,2.9673135,654.39,653.89,0.30586184]
[1740088260946,2.9673135,654.38,653.89,0.30586184]
[1740088261145,2.9673135,654.37,653.89,0.30586184]
[1740088261447,2.9673135,654.36,653.89,0.30586184]
[1740088261643,2.9673135,654.35,653.89,0.30586184]
[1740088261944,2.9673135,654.34,653.89,0.30586184]
[1740088262150,2.9673135,654.33,653.89,0.30586184]
[1740088262342,2.9673135,654.32,653.89,0.30586184]
[1740088262545,2.9673135,654.31,653.89,0.30586184]
[1740088262743,2.9673135,654.3,653.89,0.30586184]
[1740088262944,2.9673135,654.29,653.89,0.30586184]
[1740088263151,2.9673135,654.28,653.89,0.30586184]
[1740088263350,2.9673135,654.27,653.89,0.30586184]
[1740088263548,2.9673135,654.26,653.89,0.30586184]
[1740088263748,2.20655847,654.34,653.89,0.30586184]
[1740088263952,2.96800463,654.33,653.89,0.30586184]
[1740088264150,2.96800463,654.32,653.89,0.30586184]
[1740088264453,2.96800463,654.31,653.89,0.30586184]
[1740088264652,5.17555992,654.3,653.89,0.30586184]
[1740088264852,2.96800463,654.29,653.89,0.30586184]
[1740088265052,2.96800463,654.28,653.89,0.30586184]
[1740088265353,2.96800463,654.27,653.89,0.30586184]
[1740088265546,2.20755529,654.3,653.89,0.30586184]
[1740088265749,2.96834695,654.29,653.89,0.30586184]
[1740088265954,2.96834695,654.28,653.89,0.30586184]
[1740088266154,2.96834695,654.27,653.89,0.30586184]
[1740088266453,1.881,654.61,653.89,0.30586184]
[1740088266652,2.9684947,654.6,653.89,0.30586184]
[1740088266856,2.9684947,654.59,653.89,0.30586184]
[1740088267055,2.9684947,654.58,653.89,0.30586184]
[1740088267252,2.9684947,654.57,653.89,0.30586184]
[1740088267556,2.9684947,654.56,653.89,0.30586184]
[1740088267854,2.9684947,654.55,653.89,0.30586184]
[1740088268054,2.9684947,654.54,653.89,0.30586184]
[1740088268354,2.9684947,654.53,653.89,0.30586184]
[1740088268553,2.20772531,654.6,653.89,0.30586184]
[1740088268554,2.9684947,654.52,653.89,0.30586184]
[1740088268750,2.9684947,654.51,653.89,0.30586184]
[1740088268949,2.20772531,654.6,653.89,0.30586184]
[1740088268950,5.17622001,654.5,653.89,0.30586184]
[1740088269155,2.9684947,654.49,653.89,0.30586184]
[1740088269455,2.9684947,654.48,653.89,0.30586184]
[1740088269655,2.9684947,654.47,653.89,0.30586184]
[1740088269855,2.9684947,654.46,653.89,0.30586184]
[1740088270050,2.9684947,654.45,653.89,0.30586184]
[1740088270256,2.9684947,654.44,653.89,0.30586184]
[1740088270455,2.9684947,654.43,653.89,0.30586184]
[1740088270755,2.9684947,654.42,653.89,0.30586184]
[1740088270961,2.9684947,654.41,653.89,0.30586184]
[1740088271159,2.9684947,654.4,653.89,0.30586184]
[1740088271360,1.881,654.61,653.89,0.30586184]
[1740088271361,2.9684947,654.39,653.89,0.30586184]
[1740088271556,2.9684947,654.38,653.89,0.30586184]
[1740088271756,2.9684947,654.37,653.89,0.30586184]
[1740088271962,2.9684947,654.36,653.89,0.30586184]
[1740088272262,2.9684947,654.35,653.89,0.30586184]
[1740088272457,2.9684947,654.34,653.89,0.30586184]
[1740088272653,1.881,654.61,653.89,0.30586184]
[1740088272654,5.17622001,654.33,653.89,0.30586184]
[1740088272855,2.9684947,654.32,653.89,0.30586184]
[1740088273058,2.9684947,654.31,653.89,0.30586184]
[1740088273260,2.9684947,654.3,653.89,0.30586184]
[1740088273459,2.9684947,654.29,653.89,0.30586184]
[1740088273662,2.9684947,654.28,653.89,0.30586184]
[1740088273862,2.9684947,654.27,653.89,0.30586184]
[1740088274061,2.20772531,654.33,653.89,0.30586184]
[1740088274062,2.9684947,654.26,653.89,0.30586184]
[1740088274255,2.9684947,654.25,653.89,0.30586184]
[1740088274457,2.9684947,654.24,653.89,0.30586184]
[1740088274659,2.9684947,654.23,653.89,0.30586184]
[1740088274860,2.9684947,654.22,653.89,0.30586184]
[1740088275063,2.9684947,654.21,653.89,0.30586184]
[1740088275357,2.9684947,654.2,653.89,0.30586184]
[1740088275562,2.9684947,654.19,653.89,0.30586184]
[1740088275764,2.9684947,654.18,653.89,0.30586184]
[1740088276063,5.17622001,654.17,653.89,0.30586184]
[1740088276263,2.9684947,654.16,653.89,0.30586184]
[1740088276563,2.9684947,654.15,653.89,0.30586184]
[1740088276763,2.9684947,654.14,653.89,0.30586184]
[1740088277064,2.9684947,654.13,653.89,0.30586184]
[1740088277365,2.20772531,654.17,653.89,0.30586184]
[1740088277565,2.96831981,654.16,653.89,0.30586184]
[1740088277763,2.96831981,654.15,653.89,0.30586184]
[1740088278064,2.96831981,654.14,653.89,0.30586184]
[1740088278260,2.96831981,654.13,653.89,0.30586184]
[1740088278461,2.20772531,654.15,653.89,0.30586184]
[1740088278663,2.96802878,654.14,653.89,0.30586184]
[1740088278860,2.96802878,654.13,653.89,0.30586184]
[1740088279062,2.20772531,654.15,653.89,0.30586184]
[1740088279259,2.96799212,654.14,653.89,0.30586184]
[1740088279557,5.17571743,654.13,653.89,0.30586184]
[1740088279758,2.20772531,654.13,653.89,0.30586184]
[1740088280160,2.96768198,654.12,653.89,0.30586184]
[1740088280366,2.20772531,654.13,653.89,0.30586184]
[1740088280566,2.96738188,654.12,653.89,0.30586184]
[1740088280763,2.20772531,654.13,653.89,0.30586184]
[1740088281067,5.17508861,654.12,653.89,0.30586184]
[1740088281268,2.96739256,654.11,653.89,0.30586184]
[1740088281470,2.96739256,654.1,653.89,0.30586184]
[1740088281765,2.96739256,654.09,653.89,0.30586184]
[1740088281973,2.9672022,654.08,653.89,0.30586184]
[1740088282270,2.96729317,654.07,653.89,0.30586184]
[1740088282472,2.96729317,654.06,653.89,0.30586184]
[1740088282670,2.20772531,654.12,653.89,0.30586184]
[1740088282871,2.20772531,654.06,653.89,0.30586184]
[1740088283066,2.96673526,654.05,653.89,0.30586184]
[1740088283271,2.96673526,654.04,653.89,0.30586184]
[1740088283572,2.96632499,654.03,653.36,1.13863774]
[1740088283772,2.96632499,654.02,653.37,0.30610526]
[1740088283966,2.96632499,654.01,653.55,1.595385]
[1740088284171,2.96632499,654.0,653.37,0.30610526]
[1740088284473,2.96575627,653.99,653.55,1.59543376]
[1740088284672,2.20772531,654.06,653.37,0.30610526]
[1740088284867,2.96559635,654.05,653.55,1.59544595]
[1740088285067,2.96559635,654.04,653.55,1.59544595]
[1740088285270,2.96559635,654.03,653.37,0.30610526]
[1740088285466,2.96559635,654.02,653.55,1.59540938]
[1740088285669,2.96559635,654.01,653.37,0.30610526]
[1740088285870,2.20772531,654.04,653.37,0.30610526]
[1740088285871,2.20772531,654.04,653.55,1.59539719]
[1740088286071,2.20772531,654.04,653.56,0.30601628]
[1740088286672,1.708,654.55,653.56,0.30601628]
[1740088286873,1.816,654.33,653.56,0.30601628]
[1740088287073,5.16861871,654.32,653.56,0.30601628]
[1740088287273,2.9640296,654.31,653.56,0.30601628]
[1740088287574,2.9640296,654.3,653.56,0.30601628]
[1740088287775,2.9640296,654.29,653.56,0.30601628]
[1740088288074,2.9640296,654.28,653.56,0.30601628]
[1740088288274,2.9640296,654.27,653.56,0.30601628]
[1740088288573,2.20458911,654.28,653.56,0.30601628]
[1740088288574,2.9640296,654.26,653.56,0.30601628]
[1740088288772,2.9640296,654.25,653.56,0.30601628]
[1740088288968,2.9640296,654.24,653.56,0.30601628]
[1740088289173,2.9640296,654.23,653.56,0.30601628]
[1740088289371,2.9640296,654.22,653.56,0.30601628]
[1740088289570,2.9640296,654.21,653.56,0.30601628]
[1740088289770,2.9640296,654.2,653.56,0.30601628]
[1740088289976,2.9640296,654.19,653.56,0.30601628]
[1740088290169,2.20458911,654.2,653.56,0.30601628]
[1740088290170,2.9640296,654.18,653.56,0.30601628]
[1740088290372,2.9640296,654.17,653.56,0.30601628]
[1740088290575,2.9640296,654.16,653.56,0.30601628]
[1740088290772,2.9640296,654.15,653.56,0.30601628]
[1740088291076,2.9640296,654.14,653.56,0.30601628]
[1740088291375,2.9640296,654.13,653.56,0.30601628]
[1740088291569,2.9640296,654.12,653.56,0.30601628]
[1740088291775,2.9640296,654.11,653.56,0.30601628]
[1740088291971,2.9640296,654.1,653.56,0.30601628]
[1740088292179,2.20458911,654.11,653.56,0.30601628]
[1740088292677,2.96281583,654.1,653.56,0.30601628]
[1740088292878,2.20458911,654.11,653.56,0.30601628]
[1740088293973,1.816,654.33,653.56,0.30601628]
[1740088294173,2.96263196,654.32,653.56,0.30601628]
[1740088294376,2.96263196,654.31,653.56,0.30601628]
[1740088294573,2.96263196,654.3,653.56,0.30601628]
[1740088294771,2.96263196,654.29,653.56,0.30601628]
[1740088294977,2.96263196,654.28,653.56,0.30601628]
[1740088295179,2.96263196,654.27,653.56,0.30601628]
[1740088295377,2.96263196,654.26,653.56,0.30601628]
[1740088295572,2.96263196,654.25,653.56,0.30601628]
[1740088295771,2.96263196,654.24,653.56,0.30601628]
[1740088295972,2.96263196,654.23,653.56,0.30601628]
[1740088296172,2.96263196,654.22,653.56,0.30601628]
[1740088296390,2.96263196,654.21,653.56,0.30601628]
[1740088296571,2.96263196,654.2,653.56,0.30601628]
[1740088296776,2.96263196,654.19,653.56,0.30601628]
[1740088296977,2.96263196,654.18,653.56,0.30601628]
[1740088297177,2.96263196,654.17,653.56,0.30601628]
[1740088297377,2.96263196,654.16,653.56,0.30601628]
[1740088297574,2.96263196,654.15,653.56,0.30601628]
[1740088297776,2.96263196,654.14,653.56,0.30601628]
[1740088297979,2.96263196,654.13,653.56,0.30601628]
[1740088298278,2.20354014,654.2,653.56,0.30601628]
[1740088298478,2.9621797,654.19,653.56,0.30601628]
[1740088298782,2.9621797,654.18,653.56,0.30601628]
[1740088299082,2.9621797,654.17,653.56,0.30601628]
[1740088299382,2.20354014,654.18,653.56,1.44465402]
[1740088299383,2.9621797,654.16,653.56,1.44465402]
[1740088299583,2.9621797,654.15,653.56,1.44465402]
[1740088299783,2.9621797,654.14,653.56,1.44465402]
[1740088299983,2.9621797,654.13,653.56,1.44465402]
[1740088300183,1.816,654.33,653.56,1.44465402]
[1740088300483,2.96225314,654.32,653.56,1.44465402]
[1740088300685,2.96225314,654.31,653.56,1.44465402]
[1740088300885,2.96225314,654.3,653.56,1.44465402]
[1740088301085,2.96225314,654.29,653.56,1.44465402]
[1740088301288,2.96225314,654.28,653.56,1.44465402]
[1740088301484,2.96225314,654.27,653.56,1.44465402]
[1740088301685,2.96225314,654.26,653.56,1.44465402]
[1740088301985,2.96225314,654.25,653.56,1.44465402]
[1740088302286,2.96225314,654.24,653.56,1.44465402]
[1740088302488,2.96225314,654.23,653.56,1.44465402]
[1740088302780,2.96225314,654.22,653.56,1.44465402]
[1740088302984,2.96225314,654.21,653.56,1.44465402]
[1740088303180,2.96225314,654.2,653.56,1.44465402]
[1740088303485,2.96225314,654.19,653.56,1.44465402]
[1740088303685,2.96225314,654.18,653.56,1.44465402]
[1740088303886,2.96225314,654.17,653.56,1.44465402]
[1740088304085,2.96225314,654.16,653.56,1.44465402]
[1740088304284,2.96225314,654.15,653.56,1.44465402]
[1740088304481,2.96225314,654.14,653.56,0.30601628]
[1740088304684,2.96363885,654.13,653.56,0.30601628]
[1740088304887,2.20323588,654.23,653.56,0.30601628]
[1740088305083,2.96368518,654.22,653.56,0.30601628]
[1740088305283,2.96368518,654.21,653.56,0.30601628]
[1740088305482,2.96368518,654.2,653.56,0.30601628]
[1740088305682,2.96368518,654.19,653.56,0.30601628]
[1740088305881,2.96368518,654.18,653.56,0.30601628]
[1740088306083,2.96368518,654.17,653.56,0.30601628]
[1740088306281,2.96368518,654.16,653.56,0.30601628]
[1740088306484,2.20472011,654.2,653.56,0.30601628]
[1740088306485,2.96368518,654.15,653.57,1.13863774]
[1740088306685,2.96368518,654.14,653.58,0.30600691]
[1740088306884,2.20472011,654.2,653.58,0.30600691]
[1740088306885,2.96368518,654.13,653.58,0.30600691]
[1740088307086,2.96368518,654.12,653.58,0.30600691]
[1740088307284,2.20472011,654.12,653.58,0.30600691]
[1740088308790,2.20472011,654.12,653.66,1.13863774]
[1740088308991,2.20472011,654.12,653.67,0.30596478]
[1740088309187,2.104,654.41,653.67,0.30596478]
[1740088309387,2.96626584,654.4,653.67,0.30596478]
[1740088309685,5.17284124,654.39,653.67,0.30596478]
[1740088309889,2.96626584,654.38,653.67,0.30596478]
[1740088310090,2.96626584,654.37,653.67,0.30596478]
[1740088310286,2.96626584,654.36,653.67,0.30596478]
[1740088310486,2.96626584,654.35,653.67,0.30596478]
[1740088310689,2.96626584,654.34,653.67,0.30596478]
[1740088310991,2.96626584,654.33,653.67,0.30596478]
[1740088311191,2.96626584,654.32,653.67,0.30596478]
[1740088311393,2.96626584,654.31,653.67,0.30596478]
[1740088311588,2.96626584,654.3,653.67,0.30596478]
[1740088311892,2.96626584,654.29,653.67,0.30596478]
[1740088312093,2.96626584,654.28,653.67,0.30596478]
[1740088312287,2.96626584,654.27,653.67,0.30596478]
[1740088312487,2.2065754,654.31,653.67,0.30596478]
[1740088313193,0.626,654.41,653.79,1.13863774]
[1740088313393,2.96745164,654.4,653.8,0.30590394]
[1740088313592,2.96745164,654.39,653.8,0.30590394]
[1740088313792,2.96745164,654.38,653.8,0.30590394]
[1740088313992,2.96745164,654.37,653.8,0.30590394]
[1740088314193,2.96745164,654.36,653.8,0.30590394]
[1740088314390,2.96745164,654.35,653.8,0.30590394]
[1740088314594,2.96745164,654.34,653.8,0.30590394]
[1740088314794,2.20714536,654.39,653.8,0.30590394]
[1740088315093,2.96814984,654.38,653.8,0.30590394]
[1740088315289,2.96814984,654.37,653.8,0.30590394]
[1740088315494,2.96814984,654.36,653.85,1.13863774]
[1740088315795,2.96814984,654.35,653.85,1.13863774]
[1740088315994,2.96814984,654.34,653.85,1.13863774]
[1740088316195,2.96814984,654.33,653.86,0.30587587]
[1740088316398,2.20714536,654.38,653.86,0.30587587]
[1740088316595,2.96896094,654.37,653.86,0.30587587]
[1740088316797,2.96896094,654.36,653.86,0.30587587]
[1740088316997,2.96896094,654.35,653.86,0.30587587]
[1740088317197,2.96896094,654.34,653.86,0.30587587]
[1740088317399,2.96896094,654.33,653.86,0.30587587]
[1740088317592,2.20714536,654.36,653.86,0.30587587]
[1740088317794,2.96936805,654.35,653.86,0.30587587]
[1740088317999,2.96936805,654.34,653.86,0.30587587]
[1740088318298,2.96936805,654.33,653.86,0.30587587]
[1740088318498,2.20714536,654.36,653.86,0.30587587]
[1740088318700,2.96962248,654.35,653.86,0.30587587]
[1740088318998,2.96962248,654.34,653.86,0.30587587]
[1740088319195,2.20714536,654.35,653.86,0.30587587]
[1740088319400,2.96959432,654.34,653.86,0.30587587]
[1740088319600,2.20714536,654.35,653.86,0.30587587]
[1740088319900,2.96948283,654.34,653.86,0.30587587]
[1740088320101,2.96948283,654.33,653.86,0.30587587]
[1740088320400,2.96950293,654.32,653.86,0.30587587]
[1740088320603,2.20714536,654.35,653.86,0.30587587]
[1740088320800,2.96955249,654.34,653.86,0.30587587]
[1740088321002,2.96955249,654.33,653.86,0.30587587]
[1740088321204,2.96955249,654.32,653.86,0.30587587]
[1740088321503,2.20714536,654.34,653.86,0.30587587]
[1740088321802,2.96954897,654.33,653.86,0.30587587]
[1740088322002,2.96954897,654.32,653.86,0.30587587]
[1740088322203,2.96954897,654.31,653.86,0.30587587]
[1740088322501,2.96954897,654.3,653.86,0.30587587]
[1740088322702,2.96954897,654.29,653.86,0.30587587]
[1740088322901,2.96954897,654.28,653.86,0.30587587]
[1740088323099,2.96954897,654.27,653.86,0.30587587]
[1740088323301,2.96954897,654.26,653.86,0.30587587]
[1740088323506,2.96954897,654.25,653.86,0.30587587]
[1740088323800,2.96954897,654.24,653.86,0.30587587]
[1740088324003,2.20714536,654.29,653.86,0.30587587]
[1740088324197,2.96954927,654.28,653.86,0.30587587]
[1740088324402,2.96954927,654.27,653.86,0.30587587]
[1740088324702,2.96954927,654.26,653.86,0.30587587]
[1740088325003,2.20714536,654.29,653.86,0.30587587]
[1740088325198,2.96953673,654.28,653.86,0.30587587]
[1740088325401,2.96953673,654.27,653.86,0.30587587]
[1740088325601,2.96953673,654.26,653.86,0.30587587]
[1740088325802,2.96953673,654.25,653.86,0.30587587]
[1740088325999,2.20852169,654.28,653.86,0.30587587]
[1740088326000,2.96953673,654.24,653.86,0.30587587]
[1740088326199,2.20852169,654.28,653.86,0.30587587]
[1740088326400,2.96961467,654.27,653.86,0.30587587]
[1740088326606,2.96961467,654.26,653.86,0.30587587]
[1740088326803,5.17813636,654.25,653.86,0.30587587]
[1740088327003,2.20852169,654.25,653.86,0.30587587]
[1740088329007,3.438,654.53,653.86,0.30587587]
[1740088329207,2.96942954,654.52,653.86,0.30587587]
[1740088329403,5.17781762,654.51,653.86,0.30587587]
[1740088329609,2.96942954,654.5,653.86,0.30587587]
[1740088329806,2.96942954,654.49,653.86,0.30587587]
[1740088330005,2.96942954,654.48,653.86,0.30587587]
[1740088330200,2.96942954,654.47,653.86,0.30587587]
[1740088330405,2.96942954,654.46,653.86,0.30587587]
[1740088330605,2.96942954,654.45,653.86,0.30587587]
[1740088330807,2.96942954,654.44,653.86,0.30587587]
[1740088331002,2.96942954,654.43,653.86,0.30587587]
[1740088331203,2.96942954,654.42,653.86,0.30587587]
[1740088331409,2.96942954,654.41,653.86,0.30587587]
[1740088331708,2.96942954,654.4,653.86,0.30587587]
[1740088331910,2.96942954,654.39,653.86,0.30587587]
[1740088332106,2.96942954,654.38,653.86,0.30587587]
[1740088332306,2.96942954,654.37,653.86,0.30587587]
[1740088332510,2.96942954,654.36,653.86,0.30587587]
[1740088332711,2.96942954,654.35,653.86,0.30587587]
[1740088332910,2.96942954,654.34,653.86,0.30587587]
[1740088333111,2.96942954,654.33,653.86,0.30587587]
[1740088333314,2.20838808,654.42,653.86,0.30587587]
[1740088333606,2.96833149,654.41,653.86,0.30587587]
[1740088333804,2.96833149,654.4,653.86,0.30587587]
[1740088334006,2.96833149,654.39,653.86,0.30587587]
[1740088334212,2.96833149,654.38,653.86,0.30587587]
[1740088334409,2.96833149,654.37,653.86,0.30587587]
[1740088334609,2.96833149,654.36,653.86,0.30587587]
[1740088334812,2.96833149,654.35,653.86,0.30587587]
[1740088335011,2.96833149,654.34,653.86,0.30587587]
[1740088335307,2.96833149,654.33,653.86,0.30587587]
[1740088335512,2.96833149,654.32,653.86,0.30587587]
[1740088335708,2.96833149,654.31,653.86,0.30587587]
[1740088335915,2.96833149,654.3,653.86,0.30587587]
[1740088336114,2.96833149,654.29,653.86,0.30587587]
[1740088336413,2.96833149,654.28,653.86,0.30587587]
[1740088336609,2.96833149,654.27,653.86,0.30587587]
[1740088336814,2.96833149,654.26,653.86,0.30587587]
[1740088337014,2.96833149,654.25,653.86,0.30587587]
[1740088337214,2.96833149,654.24,653.86,0.30587587]
[1740088337412,2.96833149,654.23,653.86,0.30587587]
[1740088337611,2.96833149,654.22,653.86,0.30587587]
[1740088337814,2.20737913,654.22,653.86,0.30587587]
[1740088338115,2.9684415,654.21,653.86,0.30587587]
[1740088338315,2.9684415,654.2,653.86,0.30587587]
[1740088338518,2.9684415,654.19,653.86,0.30587587]
[1740088338710,2.9684415,654.18,653.86,0.30587587]
[1740088338911,2.9684415,654.17,653.86,0.30587587]
[1740088339111,2.9684415,654.16,653.86,0.30587587]
[1740088339411,2.9684415,654.15,653.86,0.30587587]
[1740088339618,2.9684415,654.14,653.86,0.30587587]
[1740088339817,2.20737913,654.15,653.86,0.30587587]
[1740088340018,2.96876849,654.14,653.86,0.30587587]
[1740088340317,2.20737913,654.15,653.86,0.30587587]
[1740088340518,2.96870416,654.14,653.86,0.30587587]
[1740088340713,2.20737913,654.15,653.86,0.30587587]
[1740088341018,2.96879658,654.14,653.86,0.30587587]
[1740088341314,2.20737913,654.14,653.86,0.30587587]
[1740088342821,1.788,654.53,653.86,0.30587587]
[1740088343019,2.96897222,654.52,653.86,0.30587587]
[1740088343213,2.96897222,654.51,653.86,0.30587587]
[1740088343418,2.96897222,654.5,653.86,0.30587587]
[1740088343619,2.96897222,654.49,653.86,0.30587587]
[1740088343914,2.96897222,654.48,653.86,0.30587587]
[1740088344119,2.96897222,654.47,653.86,0.30587587]
[1740088344320,2.96897222,654.46,653.86,0.30587587]
[1740088344517,2.96897222,654.45,653.86,0.30587587]
[1740088344718,2.96897222,654.44,653.86,0.30587587]
[1740088344913,2.96897222,654.43,653.86,0.30587587]
[1740088345117,2.96897222,654.42,653.86,0.30587587]
[1740088345315,2.96897222,654.41,653.86,0.30587587]
[1740088345519,2.96897222,654.4,653.86,0.30587587]
[1740088345721,2.96897222,654.39,653.86,0.30587587]
[1740088345925,2.96897222,654.38,653.86,0.30587587]
[1740088346125,2.96897222,654.37,653.86,0.30587587]
[1740088346423,2.96897222,654.36,653.86,0.30587587]
[1740088346624,2.96897222,654.35,653.86,0.30587587]
[1740088346821,2.96897222,654.34,653.86,0.30587587]
[1740088347023,2.96897222,654.33,653.86,0.30587587]
[1740088347223,2.96897222,654.32,653.86,0.30587587]
[1740088347426,2.96897222,654.31,653.86,0.30587587]
[1740088347626,2.96897222,654.3,653.86,0.30587587]
[1740088347828,2.96897222,654.29,653.86,0.30587587]
[1740088348024,2.96897222,654.28,653.86,0.30587587]
[1740088348226,2.96897222,654.27,653.86,0.30587587]
[1740088348528,2.96897222,654.26,653.86,0.30587587]
[1740088348730,2.96897222,654.25,653.86,0.30587587]
[1740088348926,2.96897222,654.24,653.86,0.30587587]
[1740088349227,2.96897222,654.23,653.86,0.30587587]
[1740088349421,2.96897222,654.22,653.86,0.30587587]
[1740088349622,2.96897222,654.21,653.86,0.30587587]
[1740088349821,2.96897222,654.2,653.86,0.30587587]
[1740088350022,2.96897222,654.19,653.86,0.30587587]
[1740088350223,2.96897222,654.18,653.86,0.30587587]
[1740088350426,2.96897222,654.17,653.86,0.30587587]
[1740088350622,2.96897222,654.16,653.86,0.30587587]
[1740088350827,2.96897222,654.15,653.86,0.30587587]
[1740088351122,2.96897222,654.14,653.86,0.30587587]
[1740088351326,2.20816883,654.18,653.86,0.30587587]
[1740088351529,2.97104883,654.17,653.86,0.30587587]
[1740088351729,2.97104883,654.16,653.86,0.30587587]
[1740088351930,2.20816883,654.18,653.86,0.30587587]
[1740088352130,2.20816883,654.15,653.86,0.30587587]
[1740088353830,2.248,654.52,653.86,0.30587587]
[1740088354028,2.97095038,654.51,653.86,0.30587587]
[1740088354331,2.97095038,654.5,653.86,0.30587587]
[1740088354531,2.97095038,654.49,653.86,0.30587587]
[1740088354730,2.97095038,654.48,653.86,0.30587587]
[1740088354931,2.97095038,654.47,653.86,0.30587587]
[1740088355136,2.97095038,654.46,653.86,0.30587587]
[1740088355334,2.97095038,654.45,653.86,0.30587587]
[1740088355535,2.97095038,654.44,653.86,0.30587587]
[1740088355830,2.97095038,654.43,653.86,0.30587587]
[1740088356036,2.97095038,654.42,653.86,0.30587587]
[1740088356229,2.97095038,654.41,653.86,0.30587587]
[1740088356429,2.97095038,654.4,653.86,0.30587587]
[1740088356633,2.97095038,654.39,653.86,0.30587587]
[1740088356835,2.97095038,654.38,653.86,0.30587587]
[1740088357030,2.97095038,654.37,653.86,0.30587587]
[1740088357236,2.97095038,654.36,653.86,0.30587587]
[1740088357428,2.97095038,654.35,653.86,0.30587587]
[1740088357633,2.97095038,654.34,653.86,0.30587587]
[1740088357827,2.97095038,654.33,653.86,0.30587587]
[1740088358028,2.97095038,654.32,653.86,0.30587587]
[1740088358229,2.97095038,654.31,653.86,0.30587587]
[1740088358429,2.97095038,654.3,653.86,0.30587587]
[1740088358731,2.97095038,654.29,653.86,0.30587587]
[1740088358937,2.97095038,654.28,653.86,0.30587587]
[1740088359130,2.97095038,654.27,653.86,0.30587587]
[1740088359333,2.97095038,654.26,653.86,0.30587587]
[1740088359530,2.97095038,654.25,653.86,0.30587587]
[1740088359734,5.18065891,654.24,653.86,0.30587587]
[1740088359934,2.97095038,654.23,653.86,0.30587587]
[1740088360234,2.20970853,654.24,653.86,0.30587587]
[1740088361629,2.248,654.52,653.86,0.30587587]
[1740088361833,2.97165385,654.51,653.86,0.30587587]
[1740088362034,2.97165385,654.5,653.86,0.30587587]
[1740088362235,2.97165385,654.49,653.86,0.30587587]
[1740088362536,2.97165385,654.48,653.86,0.30587587]
[1740088362836,2.97165385,654.47,653.86,0.30587587]
[1740088363036,2.21007961,654.49,653.86,0.30587587]
[1740088363037,2.97165385,654.46,653.86,0.30587587]
[1740088363230,2.97165385,654.45,653.86,0.30587587]
[1740088363435,2.97165385,654.44,653.86,0.30587587]
[1740088363631,2.97165385,654.43,653.86,0.30587587]